Cogmind - Beta 16.1 @@@ ROGUE MODE // 2026.03.11 @ 06:21:22 Player: OniAn Result: Destroyed by G-47 Trooper with Particle Gun Performance ------------- Evolutions (2) 1000 Regions Visited (6) 1200 Robots Destroyed (47) 235 Value Destroyed (1338) 1338 Prototype IDs (0) 0 Alien Tech Used (0) 0 Bonus (556) 556 TOTAL SCORE: 4329 Bonus ------- High Alert Combat Kills 58 Follower Combat Kills 408 Entered Garrisons 200 Friendly Fire -110 Cogmind --------- Core Integrity 0/550 Matter 290/300 Energy 100/100 System Corruption 0% Temperature Cool (9) Movement Core (700) Ox13 Location -8/Garrison Parts ------- > --- POWER (2) -------- (None) > --- PROPULSION (2) --- (None) > --- UTILITY (5) ------ High-capacity Storage Unit Visual Processing Unit > --- WEAPON (2) ------- Blade Saw > --- INVENTORY (20) --- Light Treads Rocket Launcher Mini Grenade Launcher Concussive RPG (1) Datajack Blade Saw Peak State ------------ > --- POWER ------------ Light Nuclear Core Light Nuclear Core > --- PROPULSION ------- Light Treads Light Treads > --- UTILITY ---------- High-capacity Storage Unit Visual Processing Unit ECM Suite Reaction Control System > --- WEAPON ----------- Makeshift Axe > --- INVENTORY -------- Carbon-fiber Leg Small Storage Unit Rocket Launcher Mini Grenade Launcher Datajack Blade Saw [Rating: 20] Favorites ----------- Power Light Ion Engine Engine Light Ion Engine Power Core Light Nuclear Core Propulsion Light Treads Treads Light Treads Leg Carbon-fiber Leg Utility Small Storage Unit Device ECM Suite Storage Small Storage Unit Processor Visual Processing Unit Protection Power Shielding Weapon Heavy EM Pulse Gun Energy Gun Heavy EM Pulse Gun Energy Cannon Light EM Pulse Cannon Slashing Weapon Makeshift Axe Special Melee Weapon Datajack Build | -11 -10 -10 -9 -9 -8 -8 ------- Run | Yrd Mat Min Mat Min Mat Gar Slots Evolved 4 | . . . 2 . 2 . Power 1 | . . . . . 1 . Propulsion . | . . . . . . . Utility 3 | . . . 2 . 1 . Weapon . | . . . . . . . Parts Attached 39 | 6 . 2 6 3 . 22 Power 7 | 1 . . . 1 . 5 Engine 2 | 1 . . . 1 . . Core 5 | . . . . . . 5 Reactor . | . . . . . . . Propulsion 10 | 2 . . 2 . . 6 Treads 8 | 2 . . 2 . . 4 Leg 2 | . . . . . . 2 Wheel . | . . . . . . . Hover . | . . . . . . . Flight . | . . . . . . . Utility 10 | 1 . 1 2 1 . 5 Device 2 | . . . 1 . . 1 Storage 2 | 1 . . . . . 1 Processor 1 | . . . . 1 . . Hackware . | . . . . . . . Protection 5 | . . 1 1 . . 3 Artifact . | . . . . . . . Weapon 12 | 2 . 1 2 1 . 6 Energy Gun 8 | 2 . 1 1 1 . 3 Energy Cannon 1 | . . . 1 . . . Ballistic Gun . | . . . . . . . Ballistic Cannon . | . . . . . . . Launcher . | . . . . . . . Special Weapon . | . . . . . . . Impact Weapon . | . . . . . . . Slashing Weapon 2 | . . . . . . 2 Piercing Weapon . | . . . . . . . Special Melee Weapon 1 | . . . . . . 1 Unidentified Prototypes . | . . . . . . . Corrupted Parts 1 | . . 1 . . . . System Corruption 2 | . . 2 . . . . Parts Lost 26 | . . 1 . 3 . 22 Power 7 | . . . . 1 . 6 Propulsion 4 | . . . . . . 4 Utility 7 | . . . . 1 . 6 Weapon 8 | . . 1 . 1 . 6 Highest Loss Streak 5 | . . 1 . 2 . 5 To Critical Strikes . | . . . . . . . Average Backups 5 | . . 3 7 6 7 6 Power . | . . . . . . . Propulsion 1 | . . 2 1 . . . Utility . | . . . . . . . Weapon 3 | . . 1 5 6 6 3 Tool/Special . | . . . . . . . Unused Backups 5 | . . . . . . 5 Power . | . . . . . . . Propulsion 1 | . . . . . . 1 Utility . | . . . . . . . Weapon 3 | . . . . . . 3 Tool/Special 1 | . . . . . . 1 Average Slot Usage (%) 89 | . 85 96 90 99 81 71 Engine 9 | . 14 14 11 10 9 2 Core 2 | . . . . . . 8 Treads 21 | . 28 28 22 22 18 12 Device 6 | . . . 6 11 9 10 Storage 11 | . 14 14 11 11 9 9 Processor 4 | . . . . 8 9 9 Protection 10 | . . 10 17 13 9 5 Energy Gun 15 | . 28 27 15 11 9 3 Energy Cannon 4 | . . . 6 11 9 2 Slashing Weapon 1 | . . . . . . 6 Peak Build Rating 20 | 6 6 8 12 13 13 20 Average Rating 11 | 4 6 7 10 12 13 15 On Entrance 8 | . 6 6 8 12 13 13 Avg Prop Armor Cover (%) 7 | . . . . . . 7 Naked Turns . | . . . . . . . Heaviest Build 58 | 11 11 13 21 21 18 58 Greatest Support 40 | 40 40 40 40 40 40 40 Greatest Overweight (x) 14 | . . . . . . 14 Average Overweight (x) . | . . . . . . . Largest Inventory Capacity 20 | 8 8 8 8 8 8 20 Average Capacity 9 | 7 8 8 8 8 8 13 Most Carried 8 | . 2 4 8 8 7 7 Average Carried 5 | . . 3 7 6 7 6 Final Capacity 20 | 8 8 8 8 8 8 20 Final Carried 8 | . 2 4 8 7 7 6 Class Distribution -------------------- 81% | Mutant 18% | Scavenger-Mutant Dominant Class ---------------- Mutant | -10/Materials Mutant | -10/Mines Mutant | -9/Materials Mutant | -9/Mines Mutant | -8/Materials Scavenger-Mutant | -8/Garrison Resources | -11 -10 -10 -9 -9 -8 -8 ----------- Run | Yrd Mat Min Mat Min Mat Gar Matter Collected 633 | 150 89 60 94 25 . 215 Remotely . | . . . . . . . Salvage Created 1941 | . 134 205 289 231 . 1082 Parts 114 | . 5 11 26 12 . 60 Haulers Intercepted . | . . . . . . . Recyclers Shooed . | . . . . . . . Parts Field Recycled . | . . . . . . . Retrieved Matter . | . . . . . . . Parts Self-Destructed . | . . . . . . . Prevented . | . . . . . . . Parts Restored . | . . . . . . . Kills | -11 -10 -10 -9 -9 -8 -8 ------- Run | Yrd Mat Min Mat Min Mat Gar Combat Hostiles Destroyed 41 | . 1 7 7 7 . 19 Melee 12 | . . . . . . 12 Guns 13 | . 1 5 3 2 . 2 Cannons 8 | . . . 3 3 . 2 AOE 6 | . . 2 1 2 . 1 Classes Destroyed 11 | . 2 1 4 . . 4 Builder 1 | . . . 1 . . . Recycler 1 | . 1 . . . . . Operator 1 | . . . 1 . . . Watcher 2 | . . . 2 . . . Swarmer 12 | . . 3 4 3 . 2 Cutter 5 | . . . . . . 5 Grunt 15 | . 1 4 1 4 . 5 Sentry 7 | . . . 2 . . 5 Specialist 1 | . . . . . . 1 Hunter 1 | . . . . . . 1 Zionite 1 | . . . . . . 1 Best Kill Streak 4 | . 2 3 2 4 . 3 Combat Bots Only 4 | . 1 3 2 4 . 3 Max Kills in Single Turn 2 | . 1 2 2 2 . 1 Gunslinging . | . . . . . . . Exploded 2 | . . 2 1 1 . 1 Melee 1 | . . . . . . 1 Uniques/NPCs Destroyed . | . . . . . . . Combat | -11 -10 -10 -9 -9 -8 -8 -------- Run | Yrd Mat Min Mat Min Mat Gar Hostile Shots Fired 300 | . 3 45 24 25 . 203 Missed 88 | . . 21 7 7 . 53 Hits 212 | . 3 24 17 18 . 150 Melee 16 | . . . . . . 16 Projectile 196 | . 3 24 17 18 . 134 Critical Strikes 14 | . . 1 . 1 . 12 Damage Taken 3110 | . 33 306 175 260 . 2336 Core 652 | . . 61 14 17 . 560 Absorbed by Shields . | . . . . . . . Redirected to Shielding 39 | . . . 5 11 . 23 Core Remaining (%) 89 | 100 . 75 . 92 . . Volleys Fired 86 | . 8 22 23 7 . 26 Largest 2 | . 2 2 2 2 . 2 Hottest 110 | . 80 105 110 101 . 101 Shots Fired 156 | . 15 39 46 14 . 42 Gun 125 | . 15 39 37 7 . 27 Cannon 31 | . . . 9 7 . 15 Launcher . | . . . . . . . Special . | . . . . . . . Kinetic . | . . . . . . . Thermal 57 | . 7 32 18 . . . Explosive . | . . . . . . . Electromagnetic 99 | . 8 7 28 14 . 42 Robot Hit Streak 12 | . 2 12 6 6 . 9 Robot Miss Streak 7 | . 4 2 4 2 . 7 Penetration Max . | . . . . . . . Secondary Targets 3 | . . 2 1 . . . Max Gunslinging Chain 1 | . . 1 1 . . . Shots Hit Robots 132 | . 6 27 20 8 . 71 Core Hits 73 | . 5 11 15 8 . 34 Critical Kills . | . . . . . . . Critical Parts Destroyed . | . . . . . . . Critical Strikes 8 | . . 1 1 . . 6 Burn 2 | . . 1 1 . . . Corrupt 1 | . . . . . . 1 Sever 5 | . . . . . . 5 Melee Attacks 99 | . . . . . . 99 Impact . | . . . . . . . Slashing 97 | . . . . . . 97 Piercing . | . . . . . . . Sneak Attacks 2 | . . . . . . 2 Combat Hostiles . | . . . . . . . Follow-up Attacks . | . . . . . . . Damage Inflicted 3752 | . 71 424 437 345 . 2475 Guns 956 | . 71 325 254 60 . 246 Cannons 512 | . . . 136 108 . 268 Explosions 630 | . . 99 47 177 . 307 Melee 1654 | . . . . . . 1654 Ramming . | . . . . . . . Kinetic . | . . . . . . . Thermal 1116 | . 45 366 221 177 . 307 Explosive . | . . . . . . . Electromagnetic 982 | . 26 58 216 168 . 514 Impact . | . . . . . . . Slashing 1654 | . . . . . . 1654 Piercing . | . . . . . . . Highest Corruption 2 | . . 2 . . . . Average Corruption 2 | . . 2 . . . . Corruption Purged . | . . . . . . . Corruption Blocked . | . . . . . . . Effects 17 | . . 17 . . . . Message Errors 3 | . . 3 . . . . Matter Fused 6 | . . 6 . . . . Heat Flow Errors 3 | . . 3 . . . . Energy Discharges 3 | . . 3 . . . . Parts Rejected 1 | . . 1 . . . . Data Loss (minor) 1 | . . 1 . . . . Overload Shots . | . . . . . . . Overflow Damage 6 | . . . . . . 6 Projectiles . | . . . . . . . Explosions 5 | . . . . . . 5 Melee 1 | . . . . . . 1 Knockbacks . | . . . . . . . Impact . | . . . . . . . Kinetic . | . . . . . . . Secondary . | . . . . . . . Self-Inflicted Damage 65 | . . . . . . 65 Shots 2 | . . . . . . 2 Rammed 1 | . 1 . . . . . Targets Rammed 1 | . 1 . . . . . Kicked . | . . . . . . . Crushed . | . . . . . . . Highest Temperature 362 | . 72 283 144 105 . 362 Average Temperature 84 | . 31 119 44 30 . 110 Received Heat Transfer 1284 | . 18 165 57 153 . 891 Effects 2 | . . 1 . . . 1 Shutdowns 1 | . . . . . . 1 Interference 1 | . . 1 . . . . Siege Activations . | . . . . . . . Martial Activations . | . . . . . . . Shielding Activations . | . . . . . . . Robots Disrupted . | . . . . . . . Combat Hostiles . | . . . . . . . Robots Corrupted 2 | . . . . . . 2 Combat Hostiles 2 | . . . . . . 2 Parts Fried 5 | . . . . . . 5 Impact Corruptions . | . . . . . . . Robots Melted . | . . . . . . . Combat Hostiles . | . . . . . . . Parts Melted 2 | . . 2 . . . . Heat Transferred 1990 | . 100 746 594 200 . 350 Parts Sabotaged . | . . . . . . . Parts Stolen . | . . . . . . . Parts Stripped . | . . . . . . . Power Chain Reactions 7 | . . 1 1 2 . 3 Alert | -11 -10 -10 -9 -9 -8 -8 ------- Run | Yrd Mat Min Mat Min Mat Gar Maximum Alert Level 2 | . . . . . . 2 Low Security (%) 77 | 100 100 100 100 100 100 9 Level 1 17 | . . . . . . 69 Level 2 5 | . . . . . . 20 Level 3 . | . . . . . . . Level 4 . | . . . . . . . Level 5 . | . . . . . . . High Security . | . . . . . . . Max Security . | . . . . . . . Peak Influence 541 | . 30 74 183 82 8 541 Initial 58 | . . . . 58 8 . Average 96 | . 5 11 65 19 6 305 Influence Increases 1818 | . 51 174 534 268 . 791 Destroy 0b10 Robot/C 1180 | . 20 140 320 200 . 500 Destroy 0b10 Robot/NC 45 | . 5 . 25 . . 15 Destroy Leader 206 | . 10 30 96 40 . 30 Allied During Kill 122 | . . . 61 19 . 42 Successful Hack 23 | . 16 . . . . 7 Disable Machine 30 | . . . 30 . . . Anti-Garrison Action 100 | . . . . . . 100 Destroy Structure 82 | . . 4 2 9 . 67 Lose Combat Pursuer 30 | . . . . . . 30 Influence Decreases 1297 | . 51 174 383 397 22 270 Entered New Map 107 | . . . . 93 14 . Time Decay 800 | . 51 164 343 234 8 . Lost Part 250 | . . 10 . 30 . 210 Lost Ally 140 | . . . 40 40 . 60 Squads Dispatched 5 | . 2 . 3 . . . Investigation 1 | . . . 1 . . . Extermination . | . . . . . . . Reinforcement 4 | . 2 . 2 . . . Assault . | . . . . . . . Garrison . | . . . . . . . Intercept . | . . . . . . . Searches Triggered . | . . . . . . . Construction Impeded . | . . . . . . . Haulers Reinforced . | . . . . . . . Active Scanning Responses . | . . . . . . . Cargo Convoy Interrupts . | . . . . . . . Stealth | -11 -10 -10 -9 -9 -8 -8 --------- Run | Yrd Mat Min Mat Min Mat Gar Distress Signals 1 | . . . 1 . . . Communications Jammed . | . . . . . . . Distress Signals . | . . . . . . . Times Spotted 72 | . 4 7 22 13 . 26 Peak Tracking Total 6 | . 1 3 5 5 . 6 Tactical Retreats 2 | . . . . 1 . 1 ECM-based Alert Blocks 2 | . . . . 2 . . Traps | -11 -10 -10 -9 -9 -8 -8 ------- Run | Yrd Mat Min Mat Min Mat Gar Traps Triggered 1 | . . . 1 . . . Indirectly . | . . . . . . . Trap Hack Attempts . | . . . . . . . Triggered . | . . . . . . . Disarmed . | . . . . . . . Reprogrammed . | . . . . . . . Reused . | . . . . . . . Traps Extracted . | . . . . . . . Installed . | . . . . . . . Triggered . | . . . . . . . Machines | -11 -10 -10 -9 -9 -8 -8 ---------- Run | Yrd Mat Min Mat Min Mat Gar Machines Disabled 2 | . . . 2 . . . Max in Single Turn 1 | . . . 1 . . . Garrison Relay 2 | . . . . . . 2 Machines Repaired . | . . . . . . . Machines Dismantled . | . . . . . . . Machines Sabotaged . | . . . . . . . Overloaded Fab Kills . | . . . . . . . Hacking | -11 -10 -10 -9 -9 -8 -8 --------- Run | Yrd Mat Min Mat Min Mat Gar Machines Accessed 7 | . 1 . 3 1 1 1 Terminals 4 | . 1 . 2 . . 1 Fabricators . | . . . . . . . Repair Stations . | . . . . . . . Recycling Units . | . . . . . . . Scanalyzers 1 | . . . 1 . . . Garrison Access 1 | . . . . . 1 . Total Hacks 16 | . 1 . 12 1 1 1 Successful 11 | . 1 . 7 1 1 1 Failed 5 | . . . 5 . . . Catastrophic 1 | . . . 1 . . . Database Lockouts . | . . . . . . . Manual 3 | . 1 . 2 . . . Terminals 7 | . 1 . 5 . . 1 Fabricators . | . . . . . . . Repair Stations . | . . . . . . . Recycling Units . | . . . . . . . Scanalyzers 7 | . . . 7 . . . Garrison Access 1 | . . . . . 1 . Terminal Hacks 2 | . . . . 1 . 1 Open Door 2 | . . . . 1 . 1 Fabricator Hacks . | . . . . . . . Repair Station Hacks . | . . . . . . . Recycling Unit Hacks . | . . . . . . . Scanalyzer 7 | . . . 7 . . . Insert Component 3 | . . . 3 . . . Analyze 3 | . . . 3 . . . Retrieve Study 1 | . . . 1 . . . Garrison Access Hacks 1 | . . . . . 1 . Unlock Access 1 | . . . . . 1 . Unauthorized Hacks 1 | . 1 . . . . . Terminals 1 | . 1 . . . . . Assimilate 1 | . 1 . . . . . Fabricators . | . . . . . . . Repair Stations . | . . . . . . . Recycling Units . | . . . . . . . Scanalyzers . | . . . . . . . Garrison Access . | . . . . . . . Data Cores Recovered . | . . . . . . . Used . | . . . . . . . Hacking Detections 3 | . . . 3 . . . Full Trace Events 1 | . . . 1 . . . Feedback Events . | . . . . . . . Feedback Blocked . | . . . . . . . Robot Schematics Acquired . | . . . . . . . Robots Built . | . . . . . . . Authchips . | . . . . . . . Time . | . . . . . . . Total Robot Build Rating . | . . . . . . . Part Schematics Acquired 3 | . . . 3 . . . Parts Built . | . . . . . . . Authchips . | . . . . . . . Time . | . . . . . . . Total Part Build Rating . | . . . . . . . Part Studies Acquired 1 | . . . 1 . . . Parts Repaired . | . . . . . . . Time . | . . . . . . . Parts Recycled . | . . . . . . . Recycled Matter . | . . . . . . . Retrieved Matter . | . . . . . . . Retrieved Components . | . . . . . . . Parts Scanalyzed 3 | . . . 3 . . . Part Schematics Acquired 3 | . . . 3 . . . Parts Damaged . | . . . . . . . Bothacking | -11 -10 -10 -9 -9 -8 -8 ------------ Run | Yrd Mat Min Mat Min Mat Gar Used RIF Installer . | . . . . . . . Robots Hacked . | . . . . . . . Non-combat . | . . . . . . . Combat . | . . . . . . . Robot Hacks Applied . | . . . . . . . Relay Couplers Released 8 | . . . . . . 8 Machine Destruction 8 | . . . . . . 8 Fabnet Peak Effective % . | . . . . . . . Robots Rewired 2 | . . . . . . 2 Allies Hacked . | . . . . . . . Hacks Repelled . | . . . . . . . Allies | -11 -10 -10 -9 -9 -8 -8 -------- Run | Yrd Mat Min Mat Min Mat Gar Total Allies 8 | . . 3 . 3 . 2 Largest Group 4 | . . 3 3 3 2 4 Highest-Rated Group 90 | . . 40 40 76 45 90 Highest-Rated Ally 31 | . . 16 16 31 31 31 Total Orders . | . . . . . . . Ally Attacks 75 | . . . 38 23 . 14 Total Damage 971 | . . . 425 295 . 251 Kills 19 | . . . 10 3 . 6 Allies Corrupted . | . . . . . . . Allies Melted . | . . . . . . . Intel | -11 -10 -10 -9 -9 -8 -8 ------- Run | Yrd Mat Min Mat Min Mat Gar Active Infowar (turns) 2892 | . . . 509 1128 23 1232 Optics 2177 | . . . . 922 23 1232 ECM 1435 | . . . 509 926 . . Robot Analysis Total . | . . . . . . . Derelict Logs Recovered 4 | . . 2 . 2 . . Drone Launches . | . . . . . . . Drone Recoveries . | . . . . . . . Exploration | -11 -10 -10 -9 -9 -8 -8 ------------- Run | Yrd Mat Min Mat Min Mat Gar Turns Passed 4887 | 72 240 1313 879 1128 23 1232 Spaces Moved 2489 | 45 134 670 491 680 15 454 Core 21 | 7 . . . . . 14 Treads 2433 | 38 134 670 491 680 15 405 Legs 35 | . . . . . . 35 Wheels . | . . . . . . . Hover . | . . . . . . . Flight . | . . . . . . . Fastest Speed 50 | 50 160 160 160 160 160 160 Average Speed 166 | 142 160 160 160 160 160 197 Slowest Speed 750 | 160 160 160 160 160 160 750 Overloaded Moves . | . . . . . . . Propulsion Burnouts . | . . . . . . . Robots Hopped . | . . . . . . . Potential Cave-ins . | . . . . . . . Cave-ins Triggered . | . . . . . . . Exploration Rate (%) 45 | 3 23 97 41 98 2 53 Regions Visited 6 Branch Regions 2 Pre-discovered Areas 3 | . . 2 . 1 . . Known Exits Taken 2 | . . . . 1 1 . Unknown Exits Taken 4 | 1 1 1 1 . . . Scrap Searched 2 | . . 1 . 1 . . Spaces Dug 9 | . . . . . . 9 Terrain Destroyed 38 | . . 5 2 9 . 22 Melee 9 | . . . . . . 9 Projectile . | . . . . . . . AOE 29 | . . 5 2 9 . 13 Terrain Rammed . | . . . . . . . Walls Destroyed . | . . . . . . . Machines Disabled . | . . . . . . . Actions | -11 -10 -10 -9 -9 -8 -8 --------- Run | Yrd Mat Min Mat Min Mat Gar Total 2962 | 50 144 871 537 706 14 640 Wait 227 | . . 175 10 16 . 26 Move 2483 | 44 133 669 490 679 14 454 Hop . | . . . . . . . Pick Up 16 | . 2 2 6 1 . 5 Fast Attach 23 | 6 . 3 2 1 . 11 Attach 10 | . . . . 2 . 8 Detach 1 | . . . . . . 1 Swap 11 | . . . 4 . . 7 Drop 5 | . . . 2 . . 3 Fire 86 | . 8 22 23 7 . 26 Melee 99 | . . . . . . 99 Ram . | . . . . . . . Kick . | . . . . . . . Crush 1 | . 1 . . . . . Escape Stasis . | . . . . . . . Rewire . | . . . . . . . Trap . | . . . . . . . Miscellaneous . | . . . . . . . Route ------- -11/Scrapyard -10/Materials -10/Mines (discovered 3 exits: *Mat x2 / [*Sub]) -9/Materials (discovered 2 exits: *Mat / *Min) -9/Mines (discovered 2 exits: *Mat x2) -8/Materials -8/Garrison (discovered 2 exits: [*Mat x2]) History --------- Turn | Location | Event 19 | -11/Scrapyard | Discovered new exit (range 15) 73 | -11/Scrapyard | Entered Materials 186 | -10/Materials | Discovered new exit (range 16) 302 | -10/Materials | Build established: Mutant 313 | -10/Materials | Entered Mines 333 | -10/Mines | Received a Rocket Launcher from a helpful Derelict 384 | -10/Mines | Discovered new exit (range 8) 691 | -10/Mines | A weapon hastily lodged in a ceiling crevice suddenly fell to the ground 1051 | -10/Mines | Discovered new exit (range 11) 1125 | -10/Mines | Learned location of Mines (-9) 1178 | -10/Mines | Learned location of Storage (-8) 1266 | -10/Mines | Discovered new exit (range 12) 1450 | -10/Mines | Assisted by bots powering up and referring to "LRC-V3" 1626 | -10/Mines | Entered Materials 1626 | -9/Materials | Accompanied by 3 allies 1626 | -9/Materials | Evolved 2 slots: Utility x2 2079 | -9/Materials | Discovered new exit (range 16) 2472 | -9/Materials | Discovered new exit (range 12) 2505 | -9/Materials | Entered Mines 2505 | -9/Mines | Accompanied by 1 ally 2522 | -9/Mines | Found the Drone Emporium 2611 | -9/Mines | Identified exit to Materials 2760 | -9/Mines | Escorted by a lone wolf Derelict 2853 | -9/Mines | Learned location of Zion (-7) 3385 | -9/Mines | Discovered exit to Materials (range 9) 3406 | -9/Mines | Found a damaged Exp. Sensor Array with a note attached 3633 | -9/Mines | Entered Materials 3633 | -8/Materials | Accompanied by 2 allies 3633 | -8/Materials | Evolved 2 slots: Power x1, Utility x1 3654 | -8/Materials | Identified exit to Garrison 3656 | -8/Materials | Entered Garrison 3656 | -8/Garrison | Accompanied by 2 allies 3892 | -8/Garrison | Triggered checkpoint 4003 | -8/Garrison | Lost 3 parts (1u2w) 4064 | -8/Garrison | Lost 5 parts (2p1u2w) 4204 | -8/Garrison | Discovered new exit (range 14) 4282 | -8/Garrison | Triggered checkpoint 4366 | -8/Garrison | Build established: Scavenger-Mutant 4403 | -8/Garrison | Discovered new exit (range 10) 4465 | -8/Garrison | Garrison Relay disabled 4481 | -8/Garrison | Garrison Relay disabled 4488 | -8/Garrison | Core integrity fell below 50% 4505 | -8/Garrison | Lost 5 parts (2p2n1u) 4658 | -8/Garrison | Triggered checkpoint 4736 | -8/Garrison | Lost 5 parts (2p1n2u) 4830 | -8/Garrison | Triggered checkpoint 4856 | -8/Garrison | Core integrity fell below 20% 4888 | -8/Garrison | Destroyed by G-47 Trooper with Particle Gun Last Messages --------------- 04694_ Lgt. Armor Plating destroyed. 04702_ Lgt. Nuclear Core destroyed. 04704_ G-47 Trooper Aluminum Leg severed. 04705_ Carbon-fiber Leg destroyed. 04707_ G-47 Trooper suffers critical hit (Burn). 04708_ G-47 Trooper destroyed. 04709_ Acquired 10 matter. 04717_ Acquired Hrd. Medium Armor Plating. 04720_ Destroyed Aluminum Leg. 04727_ G-47 Trooper destroyed. 04733_ Acquired 10 matter. 04847_ Hrd. Medium Armor Plating destroyed. 04855_ G-47 Trooper destroyed. 04856_ ALERT: Garrison interior compromised. 04859_ Critical hit (Burn: +37). 04865_ VSS Leg destroyed. 04878_ Mak. Axe destroyed. 04882_ Critical hit (Burn: +37). 04882_ G-47 Trooper Lgt. Nuclear Core severed. 04885_ G-47 Trooper Aluminum Leg severed. Map ----- +----------------------------------------------------+ | ????????????????????????????????????????? | | ????????????????????????????????????????? | | ????????????????????????????????????????? | | ????????????????????????????????????????? | | ????????????????????????????????????????? | | ????????????????????????????????????????? | | ????????????????????????????????????????? | | ????????????????????????????????????????? | | ????????????????????????????????????????? | | ????????????????????????????????????????? | | ????????????????????????????????####???## | | ????????????????????????????????# ?? | | ????????????????????????????????# ?? | | ????????????????????????????????# #????? | | ????????????????????????????????# #????? | | ????????????????????????????????#^^#????? | | ????????????????????????????????#^^#????? | | ????????????????????????????????# #????? | | ????????????????####??????#####?# #????? | | ????????????????# #??????# #?# #????? | | ????????????????# ######## ### =###### | | ????????????????# !% [% | | ????????????????#= =[%* | | ??????????????###%[######## ### ####"# | | ??????????????# ! #??????# #?#!=#??### | | ??????????????# @ #?????#"""""## #????? | | ??????????????#g #?????######## #????? | | ??????????????#= #???????????## #????? | | ??????????????### ^#???????????## #????? | | ????????????????# #???????????#" #????? | | ????????????????# #???????????## #????? | | ???????????????? #????????????# #????? | | ???????????????? #????????????# #????? | | ???????????????? #???########## #????? | | ????????????????####???# #????? | | ???????????????????????# #????? | | ???????????????????????# < ## ######????? | | ???????????????????????# ??# #?????????? | | ???????????????????????##???# #?????????? | | ??????????????????????????### #?????????? | | ??????????????????????????# #?????????? | | ????????????????????????### ###???????? | | ??????????????????????### # # ###?????? | | ??????????????????????#"" + + ""#?????? | | ??????????????????????#" #^ # "#?????? | | ??????????????????????#" " " "#?????? | | ??????????????????????#" !"! !"! "#?????? | | ??????????????????????#" ! ^ "#?????? | | ??????????????????????## ! ! !"!*##?????? | | ???????????????????????# "" ![""*#??????? | +----------------------------------------------------+ Best States ------------- Heat Dissipation 31 Energy Generation 23 Energy Capacity 220 Matter Stores 300 Matter Capacity 300 Sight Range 18 Terrain Scan Density 10 ECM Strength 1 Armor Coverage 225 Power Shielding 33 Evasion (%) 40 Recoil Reduction 2 Item Schematics ----------------- Mak. Axe | -9/Materials | Scanalyzed Hvy. EM Pulse Gun | -9/Materials | Scanalyzed Rocket Launcher | -9/Materials | Scanalyzed Robot Schematics ------------------ None Fabricated ------------ Nothing Repaired ---------- Nothing Studied --------- Lgt. Treads | -9/Materials | Hacked Alien Tech Used ----------------- None Achievements -------------- Item+ Challenges ------------ None Game ------ Seed NetworkElectrostormRocket Manual? 0 Play Time 00:27:58 Cumulative 50.6 hours Start 2026.03.10 @ 07:52:28 End 2026.03.11 @ 06:21:22 Sessions 2 Manual Loads 0 Difficulty Rogue Special Mode None Game No. 72 Rogue 48 Adventurer 24 Explorer 0 Win Type - Total 0 Types 0/0/0/0/0/0/0/0/0/0 Lore% 33 Gallery% 29 Achievement% 23 Wizard Run 0 Options --------- Layout 1 ASCII 0 Keyboard 1 Movement Arrows Keybinds 0 Fullscreen 1 Font 24/Smallcaps Map View 50x35 Zoom Use 0% Tactical HUD 1 Map Filters NONE Filters NONE Steam 1 RUN: 0fe829ba-8d50-406c-9e6e-e442dbcd3f92